bitfinex-derivatives/quotes_BTCF0:USTF0_20251009
["timestamp","ask_amount","ask_price","bid_price","bid_amount"]
[1760053582920,0.29182889,121590.0,121580.0,5.82307361]
[1760053588525,0.29182889,121590.0,121580.0,5.10147361]
[1760053588723,0.29182889,121590.0,121580.0,5.82307361]
[1760053591131,0.29182889,121590.0,121580.0,3.02879361]
[1760053591328,0.29182889,121590.0,121580.0,5.82307361]
[1760053594932,0.29182889,121590.0,121580.0,6.05928811]
[1760053596933,0.29182889,121590.0,121580.0,5.82307361]
[1760053598931,0.29182889,121590.0,121580.0,6.05928811]
[1760053601132,0.29182889,121590.0,121580.0,5.82307361]
[1760053601935,0.29182889,121590.0,121580.0,2.62879361]
[1760053602134,0.29182889,121590.0,121580.0,5.42307361]
[1760053604034,0.29182889,121590.0,121580.0,5.61529621]
[1760053605032,0.29182889,121590.0,121580.0,5.42307361]
[1760053605636,0.29182889,121590.0,121580.0,5.61529548]
[1760053606832,0.29182889,121590.0,121580.0,5.42307361]
[1760053608134,0.29182889,121590.0,121580.0,4.68167361]
[1760053608334,0.29182889,121590.0,121580.0,5.61529517]
[1760053608535,0.29182889,121590.0,121580.0,5.61557517]
[1760053609439,0.29182889,121590.0,121580.0,5.42335361]
[1760053611940,0.29182889,121590.0,121580.0,5.61557501]
[1760053613141,0.29182889,121590.0,121580.0,5.42335361]
[1760053614841,0.29182889,121590.0,121580.0,5.61557482]
[1760053616046,0.29182889,121590.0,121580.0,5.42335361]
[1760053621453,0.29182889,121590.0,121580.0,5.61557274]
[1760053622550,0.29182889,121590.0,121580.0,5.42335361]
[1760053623553,0.29182889,121590.0,121580.0,5.74462635]
[1760053627760,0.29182889,121590.0,121580.0,5.00294635]
[1760053627956,0.29182889,121590.0,121580.0,5.74442635]
[1760053628454,0.29182889,121590.0,121580.0,4.42462066]
[1760053628650,0.29182889,121590.0,121580.0,5.93672789]
[1760053628850,0.29182889,121590.0,121580.0,3.14240789]
[1760053629257,0.29182889,121590.0,121580.0,5.93680789]
[1760053629860,0.29182889,121590.0,121580.0,5.74446635]
[1760053631463,0.29182889,121590.0,121580.0,5.93689354]
[1760053633858,0.29182889,121590.0,121580.0,5.74446635]
[1760053634766,0.29182889,121590.0,121580.0,5.93686983]
[1760053635264,0.29182889,121590.0,121580.0,3.14246983]
[1760053635466,0.29182889,121590.0,121580.0,5.93682983]
[1760053637266,0.29182889,121590.0,121580.0,5.74442635]
[1760053637467,0.29182889,121590.0,121580.0,5.9368167]
[1760053637967,0.69182889,121590.0,121580.0,1.06413101]
[1760053638163,0.69182889,121590.0,121580.0,3.50256147]
[1760053638363,0.69182889,121590.0,121580.0,4.24408147]
[1760053640668,0.69182889,121590.0,121580.0,4.24412147]
[1760053648478,0.69182889,121590.0,121580.0,3.52252147]
[1760053648678,0.69182889,121590.0,121580.0,4.24412147]
[1760053648873,0.69182889,121590.0,121580.0,3.52252147]
[1760053649075,0.69182889,121590.0,121580.0,4.24412147]
[1760053650682,0.69182889,121590.0,121580.0,1.44968147]
[1760053650876,0.69182889,121590.0,121580.0,2.19120147]
[1760053651779,0.69182889,121590.0,121580.0,1.99881112]
[1760053652977,0.69182889,121590.0,121580.0,2.19120147]
[1760053655482,0.69182889,121590.0,121580.0,1.99881112]
[1760053656583,0.69182889,121590.0,121580.0,2.19120147]
[1760053661584,0.69182889,121590.0,121580.0,1.99881112]
[1760053662388,0.29182889,121590.0,121580.0,1.99881112]
[1760053669691,0.29182889,121590.0,121580.0,1.25729112]
[1760053671093,0.29182889,121590.0,121580.0,1.99877112]
[1760053675695,0.90619412,121590.0,121580.0,0.78953176]
[1760053675996,0.90619412,121590.0,121580.0,1.95392523]
[1760053677098,0.90619412,121590.0,121580.0,2.14670046]
[1760053677292,0.90619412,121590.0,121580.0,1.95392523]
[1760053680499,0.71341889,121590.0,121580.0,1.95392523]
[1760053680698,0.90619412,121590.0,121580.0,1.95392523]
[1760053682302,0.90619412,121590.0,121580.0,1.80599619]
[1760053683602,0.71341889,121590.0,121580.0,1.61322096]
[1760053684404,0.71341889,121590.0,121580.0,0.78953176]
[1760053684705,0.71341889,121590.0,121580.0,1.53101176]
[1760053685707,0.71341889,121590.0,121580.0,1.6789408]
[1760053687203,0.71341889,121590.0,121580.0,1.53101176]
[1760053692504,0.71341889,121590.0,121580.0,0.80941176]
[1760053692803,0.71341889,121590.0,121580.0,1.17021176]
[1760053695613,0.71341889,121590.0,121580.0,0.42873176]
[1760053695912,0.71341889,121590.0,121580.0,0.68592837]
[1760053696115,0.71341889,121590.0,121580.0,1.42744837]
[1760053697713,0.71341889,121590.0,121580.0,0.68592837]
[1760053697917,0.71341889,121590.0,121580.0,1.42744837]
[1760053699016,0.71341889,121590.0,121580.0,2.92744837]
[1760053699315,0.71341889,121590.0,121580.0,3.07537741]
[1760053700910,0.71341889,121590.0,121580.0,2.92744837]
[1760053702118,0.71341889,121590.0,121580.0,3.00965757]
[1760053702820,0.71341889,121590.0,121580.0,2.92744837]
[1760053705021,0.71341889,121590.0,121580.0,2.18592837]
[1760053705222,0.71341889,121590.0,121580.0,2.67025176]
[1760053705414,0.71341889,121590.0,121580.0,2.92744837]
[1760053706724,0.71341889,121590.0,121580.0,1.92873176]
[1760053706925,0.71341889,121590.0,121580.0,2.92744837]
[1760053707226,0.71341889,121590.0,121580.0,2.18592837]
[1760053707411,0.71341889,121590.0,121580.0,2.92744837]
[1760053707823,0.71341889,121590.0,121580.0,2.18592837]
[1760053708024,0.71341889,121590.0,121580.0,2.92744837]
[1760053710324,0.71341889,121590.0,121580.0,3.00965757]
[1760053710724,0.31341889,121590.0,121580.0,3.00965757]
[1760053712325,0.31341889,121590.0,121580.0,3.15758661]
[1760053717324,0.31341889,121590.0,121580.0,2.41606661]
[1760053717526,0.31341889,121590.0,121580.0,3.15754661]
[1760053717926,0.31341889,121590.0,121580.0,3.00961757]
[1760053723426,0.31341889,121590.0,121580.0,2.26813757]
[1760053723630,0.31341889,121590.0,121580.0,3.00961757]
[1760053725131,0.31341889,121590.0,121580.0,3.15754661]
[1760053730032,0.31341889,121590.0,121580.0,2.41606661]
[1760053730328,0.31341889,121590.0,121580.0,3.15754661]
[1760053733131,0.31341889,121590.0,121580.0,3.00961757]
[1760053735034,0.31341889,121590.0,121580.0,2.26813757]
[1760053735234,0.31341889,121590.0,121580.0,3.00961757]
[1760053739541,0.31341889,121590.0,121580.0,3.15754661]
[1760053743241,0.31341889,121590.0,121580.0,3.14354594]
[1760053743441,0.31341889,121590.0,121580.0,3.27206299]
[1760053746844,0.31341889,121590.0,121580.0,2.53058299]
[1760053747250,0.31341889,121590.0,121580.0,3.27202299]
[1760053748451,0.31341889,121590.0,121580.0,3.12409395]
[1760053749250,0.31341889,121590.0,121580.0,3.27202299]
[1760053750053,0.31341889,121590.0,121580.0,3.12409395]
[1760053750947,0.31341889,121590.0,121580.0,3.27202299]
[1760053752746,0.31341889,121590.0,121580.0,2.53058299]
[1760053753055,0.31341889,121590.0,121580.0,3.27202299]
[1760053753556,0.31341889,121590.0,121580.0,2.53058299]
[1760053753854,0.31341889,121590.0,121580.0,3.27202299]
[1760053754053,0.31341889,121590.0,121580.0,3.12409395]
[1760053754355,0.31341889,121590.0,121580.0,2.38265395]
[1760053754551,0.31341889,121590.0,121580.0,3.12409395]
[1760053754954,0.31341889,121590.0,121580.0,3.27202299]
[1760053757259,0.32341889,121590.0,121580.0,3.27202299]
[1760053758756,0.30182889,121590.0,121580.0,3.46487982]
[1760053758958,0.30182889,121590.0,121580.0,3.71695078]
[1760053759460,0.30182889,121590.0,121580.0,3.90934113]
[1760053761157,0.30182889,121590.0,121580.0,3.31589414]
[1760053761356,0.30182889,121590.0,121580.0,4.05733414]
[1760053761955,0.30182889,121590.0,121580.0,3.86494379]
[1760053762849,0.30182889,121590.0,121580.0,3.71695078]
[1760053765354,0.30182889,121590.0,121580.0,2.97551078]
[1760053765560,0.30182889,121590.0,121580.0,5.77003078]
[1760053767060,0.30182889,121590.0,121580.0,5.76995078]
[1760053768362,0.30182889,121590.0,121580.0,2.97551078]
[1760053768563,0.30182889,121590.0,121580.0,5.76991078]
[1760053769966,0.01344,121600.0,121590.0,0.0822024]
[1760053770166,0.09344,121600.0,121590.0,1.76293289]
[1760053770366,0.28344,121600.0,121590.0,1.95532324]
[1760053770867,0.28344,121600.0,121590.0,2.1030544]
[1760053771165,0.28344,121600.0,121590.0,4.1560544]
[1760053771365,0.28344,121600.0,121590.0,3.96319757]
[1760053771566,0.28344,121600.0,121590.0,3.62307606]
[1760053772163,0.28344,121600.0,121590.0,0.82971606]
[1760053772369,0.28344,121600.0,121590.0,3.62507606]
[1760053783473,0.28344,121600.0,121590.0,0.83071606]
[1760053783677,0.28344,121600.0,121590.0,3.62483606]
[1760053786373,0.28344,121600.0,121590.0,0.83071606]
[1760053786684,0.28344,121600.0,121590.0,3.62483606]
[1760053787578,0.28344,121600.0,121590.0,3.77256722]
[1760053789078,0.28344,121600.0,121590.0,0.97844722]
[1760053789279,0.28344,121600.0,121590.0,3.77252722]
[1760053789682,0.28344,121600.0,121590.0,0.97844722]
[1760053789880,0.28344,121600.0,121590.0,3.77252722]
[1760053792081,0.28344,121600.0,121590.0,3.96491757]
[1760053792681,0.28344,121600.0,121590.0,1.02310641]
[1760053792881,0.28344,121600.0,121590.0,3.81718641]
[1760053794483,0.28344,121600.0,121590.0,3.62479606]
[1760053794683,0.28344,121600.0,121590.0,3.62475606]
[1760053795684,0.28344,121600.0,121590.0,3.81714641]
[1760053798689,0.1928943,121600.0,121590.0,4.00996324]
[1760053798888,0.2068943,121600.0,121590.0,4.00996324]
[1760053799484,0.2068943,121600.0,121590.0,3.81757289]
[1760053800587,0.1846238,121600.0,121590.0,3.81757289]
[1760053800788,0.1182561,121600.0,121590.0,3.81757289]
[1760053800988,0.284,121600.0,121590.0,3.81757289]
[1760053801183,0.0346252,121600.0,121590.0,4.21757289]
[1760053801391,0.01844,121610.0,121600.0,0.0821956]
[1760053801691,0.27844,121610.0,121600.0,1.02156609]
[1760053803294,0.27844,121610.0,121600.0,1.1478184]
[1760053805494,0.27844,121610.0,121600.0,1.08318311]
[1760053805889,0.04206125,121620.0,121610.0,0.0821889]
[1760053806093,0.10206125,121620.0,121610.0,0.6999565]
[1760053806289,0.33206125,121620.0,121610.0,1.4411565]
[1760053806695,0.33206125,121620.0,121610.0,1.63354685]
[1760053807393,0.33206125,121620.0,121610.0,1.63362685]
[1760053809584,0.33206125,121620.0,121610.0,0.89234685]
[1760053809786,0.33206125,121620.0,121610.0,1.63358685]
[1760053814598,0.33206125,121620.0,121610.0,2.94486685]
[1760053814797,0.33206125,121620.0,121610.0,3.68602685]
[1760053815694,0.33206125,121620.0,121610.0,0.63537925]
[1760053815901,0.33206125,121620.0,121610.0,2.94486685]
[1760053816197,0.75518125,121620.0,121610.0,0.89234685]
[1760053816399,0.75518125,121620.0,121610.0,3.68610685]
[1760053817002,0.73206125,121620.0,121610.0,3.68610685]
[1760053817700,0.73206125,121620.0,121610.0,0.89234685]
[1760053818000,0.73206125,121620.0,121610.0,3.68610685]
[1760053818700,0.73206125,121620.0,121610.0,3.4937165]
[1760053819604,0.75518125,121620.0,121610.0,3.4937165]
[1760053820708,0.73206125,121620.0,121610.0,3.4937165]
[1760053824204,0.75518125,121620.0,121610.0,0.4429889]
[1760053824405,0.75518125,121620.0,121610.0,3.4937165]
[1760053826016,0.75518125,121620.0,121610.0,3.68610685]
[1760053826202,0.75518125,121620.0,121610.0,0.63537925]
[1760053826515,0.75518125,121620.0,121610.0,1.37657925]
[1760053826708,0.75518125,121620.0,121610.0,1.63354685]
[1760053827311,0.75518125,121620.0,121610.0,1.4411965]
[1760053829016,0.75518125,121620.0,121610.0,3.13338951]
[1760053830515,0.75518125,121620.0,121610.0,2.39214951]
[1760053830715,0.75518125,121620.0,121610.0,3.13334951]
[1760053831118,0.75518125,121620.0,121610.0,2.9411565]
[1760053832314,0.75518125,121620.0,121610.0,2.1999565]
[1760053832516,0.75518125,121620.0,121610.0,2.9411565]
[1760053834119,0.75518125,121620.0,121610.0,2.1999565]
[1760053834308,0.75518125,121620.0,121610.0,2.9411565]
[1760053834916,0.75518125,121620.0,121610.0,3.13334951]
[1760053836018,0.75518125,121620.0,121610.0,2.9411565]
[1760053842321,0.35518125,121620.0,121610.0,2.9411565]
[1760053842918,0.43736335,121620.0,121610.0,2.9411565]
[1760053843124,1.09433095,121620.0,121610.0,1.8608]
[1760053843323,1.09433095,121620.0,121610.0,2.87638191]
[1760053845525,0.83736335,121620.0,121610.0,2.87638191]
[1760053847028,0.83736335,121620.0,121610.0,2.6841889]
[1760053849425,0.83736335,121620.0,121610.0,2.87638191]
[1760053849730,0.83736335,121620.0,121610.0,2.13518191]
[1760053850026,0.83736335,121620.0,121610.0,2.87642191]
[1760053850830,0.83736335,121620.0,121610.0,2.79423301]
[1760053851830,1.09433095,121620.0,121610.0,2.79423301]
[1760053855029,1.09433095,121620.0,121610.0,2.05299301]
[1760053855233,1.09433095,121620.0,121610.0,2.79423301]
[1760053855434,1.09433095,121620.0,121610.0,2.60204]
[1760053857431,1.09433095,121620.0,121610.0,2.24124]
[1760053857637,1.09433095,121620.0,121610.0,2.60204]
[1760053859940,1.09433095,121620.0,121610.0,2.6842289]
[1760053861039,0.83736335,121620.0,121610.0,2.6842289]
[1760053861741,0.83736335,121620.0,121610.0,2.60204]
[1760053862638,1.09433095,121620.0,121610.0,2.60204]
[1760053864240,1.09433095,121620.0,121610.0,2.74993197]
[1760053865138,0.83736335,121620.0,121610.0,2.74993197]
[1760053865441,1.09433095,121620.0,121610.0,2.74993197]
[1760053866240,0.83736335,121620.0,121610.0,2.74993197]
[1760053866635,1.09433095,121620.0,121610.0,2.74993197]
[1760053867445,0.83736335,121620.0,121610.0,2.94274202]
[1760053867644,1.0301734,121620.0,121610.0,2.94274202]
[1760053868046,1.0301734,121620.0,121610.0,2.20150202]
[1760053868345,1.0301734,121620.0,121610.0,3.02493092]
[1760053869945,1.0301734,121620.0,121610.0,2.94274202]
[1760053871042,1.0301734,121620.0,121610.0,2.20150202]
[1760053871250,1.0301734,121620.0,121610.0,2.94274202]
[1760053871743,1.0301734,121620.0,121610.0,0.50869197]
[1760053872047,1.0301734,121620.0,121610.0,1.44274202]
[1760053872243,1.0301734,121620.0,121610.0,2.00869197]
[1760053872444,1.22298345,121620.0,121610.0,2.74993197]
[1760053872641,1.4157935,121620.0,121610.0,1.64789197]
[1760053872847,1.4157935,121620.0,121610.0,0.14789197]
[1760053873047,1.58378345,121620.0,121610.0,0.74124]
[1760053873450,0.0954956,121600.0,121590.0,2.24580306]
[1760053873747,0.0954956,121600.0,121590.0,2.98704306]
[1760053873748,0.57830565,121600.0,121590.0,2.98704306]
[1760053874746,0.57830565,121600.0,121590.0,2.79585005]
[1760053875247,0.7711157,121600.0,121590.0,1.8618]
[1760053875444,0.7935257,121600.0,121590.0,0.3618]
[1760053875647,0.7935257,121600.0,121590.0,1.1042]
[1760053875946,0.7935257,121600.0,121590.0,2.6042]
[1760053876248,0.60071565,121600.0,121590.0,2.79701005]
[1760053877449,1.1935257,121600.0,121590.0,2.6042]
[1760053878049,1.1935257,121600.0,121590.0,1.1042]
[1760053878449,1.1935257,121600.0,121590.0,1.29639301]
[1760053879552,1.1935257,121600.0,121590.0,1.1042]
[1760053880453,1.1935257,121600.0,121590.0,1.25202848]
[1760053881849,1.1935257,121600.0,121590.0,1.1042]
[1760053882356,1.1935257,121600.0,121590.0,1.25203249]
[1760053882658,1.1935257,121600.0,121590.0,0.89123249]
[1760053882955,1.1935257,121600.0,121590.0,1.25203249]
[1760053883256,1.1935257,121600.0,121590.0,1.1042]
[1760053883850,1.1935257,121600.0,121590.0,0.3628]
[1760053884053,1.1935257,121600.0,121590.0,1.10428]
[1760053884548,1.1935257,121600.0,121590.0,1.10424]
[1760053885754,1.1935257,121600.0,121590.0,1.25207764]
[1760053889952,1.1543257,121600.0,121590.0,0.14983764]
[1760053890157,0.7935257,121600.0,121590.0,0.89127764]
[1760053892256,0.7935257,121600.0,121590.0,0.14983764]
[1760053892454,0.7935257,121600.0,121590.0,0.89127764]
[1760053892655,0.7935257,121600.0,121590.0,0.14983764]
[1760053892855,0.7935257,121600.0,121590.0,0.89127764]
[1760053893064,0.7935257,121600.0,121590.0,0.74344]
[1760053893451,0.7935257,121600.0,121590.0,0.002]
[1760053893659,0.7935257,121600.0,121590.0,0.74344]
[1760053894261,1.1935257,121600.0,121590.0,0.74344]
[1760053900961,1.1935257,121600.0,121590.0,0.002]
[1760053901160,1.1935257,121600.0,121590.0,0.74348]
[1760053902363,0.7935257,121600.0,121590.0,0.74348]
[1760053903065,0.7935257,121600.0,121590.0,0.002]
[1760053903265,0.7935257,121600.0,121590.0,0.74348]
[1760053903873,0.7935257,121600.0,121590.0,0.002]
[1760053904162,0.7935257,121600.0,121590.0,0.74344]
[1760053906365,0.7935257,121600.0,121590.0,0.002]
[1760053906573,0.4079056,121600.0,121590.0,0.74344]
[1760053906766,0.7935257,121600.0,121590.0,0.74344]
[1760053908456,0.60071565,121600.0,121590.0,1.29705005]
[1760053912468,0.60071565,121600.0,121590.0,0.55561005]
[1760053912669,0.60071565,121600.0,121590.0,1.29709005]
[1760053915066,0.60071565,121600.0,121590.0,0.55561005]
[1760053915472,0.60071565,121600.0,121590.0,1.10428]
[1760053915669,0.60071565,121600.0,121590.0,1.29709005]
[1760053916471,0.60071565,121600.0,121590.0,0.55561005]
[1760053916771,0.4079056,121600.0,121590.0,1.29705005]
[1760053916971,0.60071565,121600.0,121590.0,1.29705005]
[1760053917171,0.60071565,121600.0,121590.0,0.55561005]
[1760053917372,0.7935257,121600.0,121590.0,1.10424]
[1760053921869,0.7935257,121600.0,121590.0,1.29705005]
[1760053922470,0.4079056,121600.0,121590.0,1.29705005]
[1760053922774,0.7935257,121600.0,121590.0,1.29705005]
[1760053923074,0.60071565,121600.0,121590.0,1.29705005]
[1760053924775,0.60071565,121600.0,121590.0,0.55561005]
[1760053925074,0.7935257,121600.0,121590.0,1.29705005]
[1760053926476,0.7935257,121600.0,121590.0,1.10424]
[1760053926675,0.7935257,121600.0,121590.0,1.29705005]
[1760053927578,0.7935257,121600.0,121590.0,1.10424]
[1760053927779,0.7935257,121600.0,121590.0,1.29705005]
[1760053929277,0.7935257,121600.0,121590.0,0.55561005]
[1760053929479,0.66507203,121600.0,121590.0,0.3628]
[1760053929679,0.66507203,121600.0,121590.0,1.10424]
[1760053932084,0.4079056,121600.0,121590.0,1.10424]
[1760053932285,0.66507203,121600.0,121590.0,1.10424]
[1760053934587,0.4079056,121600.0,121590.0,1.10424]
[1760053936289,0.4079056,121600.0,121590.0,0.3628]
[1760053936489,0.4079056,121600.0,121590.0,1.10424]
[1760053937793,0.3854956,121600.0,121590.0,1.10216883]
[1760053937993,0.3854956,121600.0,121590.0,1.84360883]
[1760053938396,0.3854956,121600.0,121590.0,1.84368883]
[1760053938996,0.3854956,121600.0,121590.0,1.99152647]
[1760053941299,0.3854956,121600.0,121590.0,1.84368883]
[1760053941494,0.3854956,121600.0,121590.0,1.48288883]
[1760053941797,0.3854956,121600.0,121590.0,1.84368883]
[1760053944307,0.3854956,121600.0,121590.0,1.5865224]
[1760053944493,0.3854956,121600.0,121590.0,1.84368883]
[1760053945602,0.3854956,121600.0,121590.0,1.01996643]
[1760053945903,0.3854956,121600.0,121590.0,1.76140643]
[1760053946298,0.3854956,121600.0,121590.0,1.84360883]
[1760053946503,0.3033,121600.0,121590.0,1.10216883]
[1760053946698,0.3854957,121600.0,121590.0,1.10216883]
[1760053946898,0.3854957,121600.0,121590.0,1.84380883]
[1760053948906,0.3854957,121600.0,121590.0,1.84376883]
[1760053952207,0.3033,121600.0,121590.0,1.84376883]
[1760053954309,0.3033,121600.0,121590.0,1.99160647]
[1760053955213,0.3033,121600.0,121590.0,1.73444004]
[1760053955406,0.3033,121600.0,121590.0,1.99160647]
[1760053957511,0.3033,121600.0,121590.0,2.35240647]
[1760053957711,0.3033,121600.0,121590.0,1.95240647]
[1760053959918,0.3033,121600.0,121590.0,1.21080647]
[1760053960211,0.3033,121600.0,121590.0,1.95224647]
[1760053961514,0.3033,121600.0,121590.0,1.21080647]
[1760053961812,0.3033,121600.0,121590.0,1.95224647]
[1760053963611,0.02862125,121620.0,121610.0,0.0821889]
[1760053963813,0.02799625,121640.0,121630.0,0.0821754]
[1760053964117,0.29799625,121640.0,121630.0,3.39514826]
[1760053964321,0.29799625,121640.0,121630.0,4.51674826]
[1760053965925,0.29799625,121640.0,121630.0,4.58297504]
[1760053966226,0.29799625,121640.0,121630.0,3.83733504]
[1760053966427,0.29799625,121640.0,121630.0,4.58293504]
[1760053968029,0.29799625,121640.0,121630.0,3.83733504]
[1760053968229,0.29799625,121640.0,121630.0,4.58273504]
[1760053969129,0.29799625,121640.0,121630.0,1.78433504]
[1760053969330,0.29799625,121640.0,121630.0,4.58229504]
[1760053970226,0.29799625,121640.0,121630.0,1.78433504]
[1760053970429,0.29799625,121640.0,121630.0,4.58217504]
[1760053970625,0.29799625,121640.0,121630.0,1.78433504]
[1760053971032,0.29799625,121640.0,121630.0,4.32488861]
[1760053972227,0.29799625,121640.0,121630.0,3.57968861]
[1760053972530,0.29799625,121640.0,121630.0,4.32484861]
[1760053972932,0.29799625,121640.0,121630.0,4.58201504]
[1760053974131,0.29799625,121640.0,121630.0,4.32484861]
[1760053974529,0.29799625,121640.0,121630.0,1.52716861]
[1760053974730,0.29799625,121640.0,121630.0,4.32452861]
[1760053975334,0.29799625,121640.0,121630.0,1.52716861]
[1760053975531,0.29799625,121640.0,121630.0,4.32440861]
[1760053976832,0.29799625,121640.0,121630.0,1.52716861]
[1760053977135,0.29799625,121640.0,121630.0,4.32424861]
[1760053977428,0.1164102,121640.0,121630.0,4.32424861]
[1760053977634,0.02878436,121660.0,121650.0,0.0821619]
[1760053977836,0.32878436,121660.0,121650.0,1.1883619]
[1760053978141,0.32878436,121660.0,121650.0,1.44552833]
[1760053979237,0.32878436,121660.0,121650.0,1.45384839]
[1760053979931,0.32878436,121660.0,121650.0,0.70844839]
[1760053980231,0.25612408,121660.0,121650.0,1.45372839]
[1760053980431,8e-08,121660.0,121650.0,1.45372839]
[1760053980632,0.04687324,121670.0,121660.0,0.0821551]
[1760053980833,0.24687324,121670.0,121660.0,0.70012153]
[1760053982137,0.24787324,121670.0,121660.0,0.70012153]
[1760053982832,0.09205064,121670.0,121660.0,0.70012153]
[1760053983136,0.2061857,121670.0,121660.0,0.70012153]
[1760053983328,0.06799,121670.0,121660.0,0.70012153]
[1760053983528,0.2456736,121670.0,121660.0,0.70012153]
[1760053984631,0.2456736,121670.0,121660.0,0.4429551]
[1760053984829,0.2456736,121670.0,121660.0,3.49704153]
[1760053987041,0.2456736,121670.0,121660.0,3.49692153]
[1760053988246,0.2456736,121670.0,121660.0,3.2397551]
[1760053988443,0.2456736,121670.0,121660.0,3.49692153]
[1760053989443,0.2456736,121670.0,121660.0,3.62489292]
[1760053989835,0.2456736,121670.0,121660.0,0.4429551]
[1760053989836,0.43824251,121670.0,121660.0,0.4429551]
[1760053990040,0.85928251,121670.0,121660.0,0.63552401]
[1760053990252,0.85928251,121670.0,121660.0,1.38036401]
[1760053990941,0.85928251,121670.0,121660.0,0.63552401]
[1760053991442,0.85928251,121670.0,121660.0,1.38032401]
[1760053992248,0.83824251,121670.0,121660.0,1.38032401]
[1760053992937,0.83824251,121670.0,121660.0,1.52816165]
[1760053994546,0.83824251,121670.0,121660.0,1.38032401]
[1760053996146,0.83824251,121670.0,121660.0,2.98304172]
[1760053996342,0.2456736,121670.0,121660.0,3.17561063]
[1760053996546,0.2456736,121670.0,121660.0,3.17537063]
[1760053997042,0.2456736,121670.0,121660.0,3.07265292]
[1760053997242,0.2456736,121670.0,121660.0,3.17532252]
[1760053997938,0.03006642,121680.0,121670.0,0.0821484]
[1760053998138,0.31006642,121680.0,121670.0,1.02065513]
[1760053998343,0.31006642,121680.0,121670.0,1.57500622]
[1760054000742,0.31006642,121680.0,121670.0,1.64173035]
[1760054002645,0.69520424,121680.0,121670.0,0.50967253]
[1760054002850,1.11624424,121680.0,121670.0,1.25731253]
[1760054003046,0.92367533,121680.0,121670.0,1.25731253]
[1760054003351,0.92367533,121680.0,121670.0,1.45088144]
[1760054003552,0.92367533,121680.0,121670.0,1.25831253]
[1760054004455,0.92367533,121680.0,121670.0,1.45088144]
[1760054005455,0.92367533,121680.0,121670.0,1.45188144]
[1760054005950,0.92367533,121680.0,121670.0,1.45088144]
[1760054007358,0.92367533,121680.0,121670.0,1.44988144]
[1760054010755,0.73110642,121680.0,121670.0,1.44988144]
[1760054011163,0.71006642,121680.0,121670.0,1.44988144]
[1760054011363,0.31006642,121680.0,121670.0,1.44988144]
[1760054012157,0.31006642,121680.0,121670.0,1.64245035]
[1760054012664,0.31006642,121680.0,121670.0,1.44988144]
[1760054013153,0.31006642,121680.0,121670.0,1.64245035]
[1760054013962,0.31006642,121680.0,121670.0,1.44988144]
[1760054014564,0.31006642,121680.0,121670.0,1.44932144]
[1760054015953,0.31006642,121680.0,121670.0,0.70224144]
[1760054016154,0.31006642,121680.0,121670.0,1.44924144]
[1760054017853,0.31006642,121680.0,121670.0,1.64181035]
[1760054018155,0.31006642,121680.0,121670.0,2.23677926]
[1760054018362,0.19287212,121680.0,121670.0,1.65907253]
[1760054018660,2e-08,121680.0,121670.0,1.65907253]
[1760054019154,0.03270327,121690.0,121680.0,0.0821416]
[1760054019355,0.21270327,121690.0,121680.0,0.82807942]
[1760054020157,0.21270327,121690.0,121680.0,1.02064833]
[1760054021160,0.21270327,121690.0,121680.0,0.82807942]
[1760054021361,0.21270327,121690.0,121680.0,1.02064833]
[1760054025866,0.21270327,121690.0,121680.0,0.82807942]
[1760054030169,0.13592327,121690.0,121680.0,1.02064833]
[1760054030466,0.28419,121690.0,121680.0,1.02064833]
[1760054032965,0.2025968,121690.0,121680.0,1.02064833]
[1760054033166,0.1947325,121690.0,121680.0,1.76896833]
[1760054034068,0.0212689,121690.0,121680.0,1.42064833]
[1760054034263,0.02852236,121700.0,121690.0,0.0821349]
[1760054034471,0.19852236,121700.0,121690.0,1.67917607]
[1760054035166,0.19852236,121700.0,121690.0,0.93105607]
[1760054035470,0.19852236,121700.0,121690.0,1.67913607]
[1760054035969,0.19852236,121700.0,121690.0,3.73033607]
[1760054036870,0.19852236,121700.0,121690.0,2.98233607]
[1760054037070,0.02852236,121700.0,121690.0,3.73029607]
[1760054038477,0.02852236,121700.0,121690.0,3.73021607]
[1760054038775,0.02852236,121700.0,121690.0,2.98233607]
[1760054038975,0.02852236,121700.0,121690.0,3.73013607]
[1760054039782,0.02852236,121700.0,121690.0,0.93105607]
[1760054039982,0.02852236,121700.0,121690.0,3.72997607]
[1760054040383,0.02852236,121700.0,121690.0,3.62699272]
[1760054040584,0.02852236,121700.0,121690.0,3.77483036]
[1760054040779,0.02852236,121700.0,121690.0,3.02711036]
[1760054040984,0.02852236,121700.0,121690.0,3.77479036]
[1760054041483,0.02852236,121700.0,121690.0,3.02711036]
[1760054041788,0.02852236,121700.0,121690.0,3.77471036]
[1760054041985,0.02852236,121700.0,121690.0,0.97591036]
[1760054042286,0.02852236,121700.0,121690.0,3.77463036]
[1760054042878,0.02852236,121700.0,121690.0,3.62679272]
[1760054043683,0.02852236,121700.0,121690.0,3.77463036]
[1760054046984,0.02852236,121700.0,121690.0,3.62679272]
[1760054047985,0.02852236,121700.0,121690.0,4.21936163]
[1760054048183,0.01672443,121740.0,121720.0,0.0821146]
[1760054048389,0.03149443,121740.0,121730.0,1.5683879]
[1760054048582,3e-08,121740.0,121730.0,1.18884572]
[1760054048787,3e-08,121740.0,121730.0,2.8548279]
[1760054049087,3e-08,121740.0,121730.0,4.00528572]
[1760054049288,3e-08,121740.0,121730.0,4.00520572]
[1760054049684,3e-08,121740.0,121730.0,1.18884572]
[1760054049992,0.42386003,121740.0,121730.0,0.8471479]
[1760054050191,0.40000003,121740.0,121730.0,1.40051681]
[1760054050385,0.40000003,121740.0,121730.0,0.63547681]
[1760054050588,0.61642894,121740.0,121730.0,0.64378508]
[1760054050884,0.61842894,121740.0,121730.0,1.40894508]
[1760054051592,0.42386003,121740.0,121730.0,1.47290278]
[1760054051890,0.40000003,121740.0,121730.0,1.47290278]
[1760054052593,0.40000003,121740.0,121730.0,1.54017841]
[1760054054291,0.42386003,121740.0,121730.0,0.77501841]
[1760054054494,0.40000003,121740.0,121730.0,1.53977841]
[1760054056592,0.40000003,121740.0,121730.0,3.03977841]
[1760054058390,0.40000003,121740.0,121730.0,2.27501841]
[1760054058591,0.40000003,121740.0,121730.0,3.1415655]
[1760054062493,0.40000003,121740.0,121730.0,3.03869841]
[1760054063293,0.40000003,121740.0,121730.0,3.14174329]
[1760054064190,0.40000003,121740.0,121730.0,2.27501841]
[1760054064594,0.40000003,121740.0,121730.0,3.03749841]
[1760054065397,0.40000003,121740.0,121730.0,2.67669841]
[1760054068596,0.40000003,121740.0,121730.0,2.82453605]
[1760054069089,0.70000003,121740.0,121730.0,2.06205605]
[1760054069596,0.70000003,121740.0,121730.0,2.82361605]
[1760054069798,0.37996757,121770.0,121730.0,3.32788944]
[1760054070002,0.0163,121780.0,121770.0,0.4065809]
[1760054070195,0.0408,121780.0,121770.0,0.0820809]
[1760054070393,0.0163,121750.0,121740.0,0.0821011]
[1760054070598,0.1663,121750.0,121740.0,1.5968211]
[1760054070790,0.1663,121750.0,121740.0,1.16817786]
[1760054070990,0.16137248,121750.0,121740.0,1.96177786]